[Event "Lidkoping Open 2019"]
[Site "Lidkoping"]
[Date "2019.08.25"]
[Round "6.9"]
[White "Andersen, Dag"]
[Black "Mardell, Jonas"]
[Result "0-1"]
[ECO "D41"]
[WhiteElo "1873"]
[BlackElo "2059"]
[Annotator "NA"]
[PlyCount "110"]
[EventDate "2019.08.19"]
[EventType "swiss"]
[EventCountry "SWE"]
[SourceTitle "playchess.com"]
[Source "ChessBase"]
[SourceQuality "1"]
[TimeControl "2700+10"]

1. d4 {[%emt 0:00:00]} d5 {[%emt 0:00:00]} 2. c4 {[%emt 0:00:06]} e6 {[%emt 0:00:02]} 3. Nc3 {[%emt 0:00:12]} Nf6 {[%emt 0:00:02]} 4. cxd5 {[%emt 0:00:32]} Nxd5 {[%emt 0:00:36]} 5. e4 {[%emt 0:00:25]} Nxc3 {[%emt 0:00:02]} 6. bxc3 {[%emt 0:00:08]} c5 {[%emt 0:00:03]} 7. Nf3 {[%emt 0:00:21]} Qa5 {[%emt 0:01:30]} 8. Bd2 {[%emt 0:02:58]} cxd4 {[%emt 0:02:11]} 9. cxd4 {[%emt 0:00:42]} Bb4 {[%emt 0:00:03]} 10. Be2 {[%emt 0:03:33]} Nc6 {[%emt 0:02:53]} 11. Bxb4 {[%emt 0:02:46]} Qxb4+ {[%emt 0:00:09]} 12. Qd2 {[%emt 0:00:18]} O-O {[%emt 0:02:56]} 13. Qxb4 {[%emt 0:01:01]} Nxb4 {[%emt 0:00:03]} 14. O-O {[%emt 0:00:38]} Rd8 {[%emt 0:07:08]} 15. Rfd1 {[%emt 0:02:11]} Bd7 {[%emt 0:03:58]} 16. a3 {[%emt 0:03:23]} Nc6 {[%emt 0:03:14]} 17. h3 {[%emt 0:04:01]} a6 {[%emt 0:02:14]} 18. Rab1 {[%emt 0:00:55]} b5 {[%emt 0:01:01]} 19. d5 {[%emt 0:01:39]} exd5 {[%emt 0:05:08]} 20. Rxd5 {[%emt 0:01:00]} Be6 {[%emt 0:00:35]} 21. Rc5 {[%emt 0:02:37]} Nd4 {[%emt 0:02:01]} 22. Nxd4 {[%emt 0:00:23]} Rxd4 {[%emt 0:00:03]} 23. Bf3 {[%emt 0:01:20]} Rad8 {[%emt 0:00:48]} 24. Rbc1 {[%emt 0:01:05]} g6 {[%emt 0:01:35]} 25. Rc6 {[%emt 0:00:43]} Ra4 {[%emt 0:00:06]} 26. R6c3 {[%emt 0:01:05]} Rd2 {[%emt 0:00:51]} 27. Re3 {[%emt 0:02:40]} Ra2 {[%emt 0:02:04]} 28. Rcc3 {[%emt 0:00:25]} Ra1+ {[%emt 0:00:02]} 29. Kh2 {[%emt 0:00:14]} a5 {[%emt 0:01:39]} 30. Be2 {[%emt 0:04:15]} b4 {[%emt 0:00:41]} 31. axb4 {[%emt 0:00:35]} axb4 {[%emt 0:00:09]} 32. Rcd3 {[%emt 0:00:35]} b3 {[%emt 0:00:38]} 33. Rd8+ {[%emt 0:00:09]} Kg7 {[%emt 0:00:05]} 34. Rb8 {[%emt 0:00:31]} R4a2 {[%emt 0:02:21]} 35. Bg4 {[%emt 0:01:53]} Bc4 {[%emt 0:01:14]} 36. Rc3 {[%emt 0:00:32]} Rc2 {[%emt 0:00:28]} 37. Rcxb3 {[%emt 0:02:14]} Bxb3 {[%emt 0:00:04]} 38. Rxb3 {[%emt 0:00:09]} Rxf2 {[%emt 0:00:03]} 39. Bf3 {[%emt 0:00:13]} Raa2 {[%emt 0:00:36]} 40. Kg3 {[%emt 0:00:16]} h5 {[%emt 0:00:12]} 41. h4 {[%emt 0:00:02]} Rfb2 {[%emt 0:00:14]} 42. Rc3 {[%emt 0:00:13]} Ra7 {[%emt 0:00:18]} 43. Rc6 {[%emt 0:00:11]} Rba2 {[%emt 0:00:10]} 44. Kf4 {[%emt 0:00:49]} f6 {[%emt 0:00:24]} 45. Kg3 {[%emt 0:00:06]} R2a6 {[%emt 0:00:18]} 46. Rc5 {[%emt 0:00:02]} Kh6 {[%emt 0:00:08]} 47. Rc8 {[%emt 0:00:01]} Ra8 {[%emt 0:00:13]} 48. Rc7 {[%emt 0:00:01]} Re8 {[%emt 0:00:17]} 49. Rc5 {[%emt 0:00:06]} g5 {[%emt 0:00:08]} 50. hxg5+ {[%emt 0:00:01]} fxg5 {[%emt 0:00:03]} 51. e5 {[%emt 0:00:40]} Rae6 {[%emt 0:00:22]} 52. Rc7 {[%emt 0:00:43]} Rxe5 {[%emt 0:00:12]} 53. Bc6 {[%emt 0:00:01]} Re3+ {[%emt 0:00:09]} 54. Kh2 {[%emt 0:00:01]} R8e7 {[%emt 0:00:19]} 55. Rc8 {[%emt 0:00:03]} Rc3 {[%emt 0:00:14]} 0-1

[Event "Lidkoping Open 2019"]
[Site "Lidkoping"]
[Date "2019.08.25"]
[Round "6.10"]
[White "Winsnes, Rikard"]
[Black "Strom-Engdahl, Alexander"]
[Result "1-0"]
[ECO "C43"]
[WhiteElo "2375"]
[BlackElo "1858"]
[Annotator "ChessBase"]
[PlyCount "61"]
[EventDate "2019.08.19"]
[EventType "swiss"]
[EventCountry "SWE"]
[SourceTitle "playchess.com"]
[Source "ChessBase"]
[SourceQuality "1"]
[TimeControl "2700+10"]

1. e4 {[%emt 0:00:00]} e5 {[%emt 0:00:05]} 2. Nf3 {[%emt 0:00:01]} Nf6 {[%emt 0:00:08]} 3. d4 {[%emt 0:00:35]} Nxe4 {[%emt 0:00:05]} 4. Bd3 {[%emt 0:00:55]} d5 {[%emt 0:00:34]} 5. Nxe5 {[%emt 0:00:06]} Bd6 {[%emt 0:00:59]} 6. O-O {[%emt 0:00:12]} O-O {[%emt 0:00:36]} 7. c4 {[%emt 0:00:18]} c6 {[%emt 0:00:24]} 8. Qc2 {[%emt 0:22:14]} Nd7 {[%emt 0:10:26]} 9. Bxe4 {[%emt 0:02:18]} Nxe5 {[%emt 0:00:44]} 10. dxe5 {[%emt 0:00:15]} Bxe5 {[%emt 0:00:31]} 11. Bxh7+ {[%emt 0:00:19]} Kh8 {[%emt 0:00:04]} 12. Bf5 {[%emt 0:00:16]} Bxf5 {[%emt 0:00:23]} 13. Qxf5 {[%emt 0:00:02]} Qd6 {[%emt 0:00:01]} 14. Qh3+ {[%emt 0:01:42]} Kg8 {[%emt 0:00:02]} 15. Nd2 {[%emt 0:00:20]} Qf6 {[%emt 0:00:16]} 16. Rb1 {[%emt 0:06:00]} Rfe8 {[%emt 0:00:15]} 17. cxd5 {[%emt 0:00:16]} cxd5 {[%emt 0:00:06]} 18. Nf3 {[%emt 0:00:04]} Qg6 {[%emt 0:00:24]} 19. Be3 {[%emt 0:00:38]} Bf6 {[%emt 0:00:10]} 20. Rbd1 {[%emt 0:00:37]} Rad8 {[%emt 0:00:40]} 21. Bd4 {[%emt 0:00:27]} Bxd4 {[%emt 0:01:24]} 22. Rxd4 {[%emt 0:00:23]} Re4 {[%emt 0:00:26]} 23. Rfd1 {[%emt 0:00:23]} Rxd4 {[%emt 0:00:02]} 24. Nxd4 {[%emt 0:00:19]} Re8 {[%emt 0:00:25]} 25. Qf3 {[%emt 0:01:09]} Re4 {[%emt 0:00:10]} 26. h3 {[%emt 0:00:42]} Qb6 {[%emt 0:00:32]} 27. Qc3 {[%emt 0:00:05]} Rf4 {[%emt 0:01:41]} 28. Nf3 {[%emt 0:00:55]} Rb4 {[%emt 0:01:30]} 29. Qc8+ {[%emt 0:00:41]} Kh7 {[%emt 0:00:10]} 30. Rxd5 {[%emt 0:00:02]} g6 {[%emt 0:00:38]} 31. Qf8 {[%emt 0:00:42]} 1-0

[Event "Lidkoping Open 2019"]
[Site "Lidkoping"]
[Date "2019.08.25"]
[Round "6.11"]
[White "Lind, Jan-Olov"]
[Black "Nyberg, Arne"]
[Result "1/2-1/2"]
[ECO "C07"]
[WhiteElo "2164"]
[BlackElo "1967"]
[Annotator "ChessBase"]
[PlyCount "150"]
[EventDate "2019.08.19"]
[EventType "swiss"]
[EventCountry "SWE"]
[SourceTitle "playchess.com"]
[Source "ChessBase"]
[SourceQuality "1"]
[TimeControl "2700+10"]

1. e4 {[%emt 0:00:00]} e6 {[%emt 0:00:00]} 2. Nf3 {[%emt 0:00:15]} d5 {[%emt 0:00:00]} 3. Nc3 {[%emt 0:00:19]} c5 {[%emt 0:00:11]} 4. d4 {[%emt 0:00:18]} dxe4 {[%emt 0:00:49]} 5. Nxe4 {[%emt 0:00:08]} cxd4 {[%emt 0:00:17]} 6. Nxd4 {[%emt 0:00:25]} a6 {[%emt 0:01:03]} 7. Bd3 {[%emt 0:03:58]} Bd7 {[%emt 0:02:46]} 8. O-O {[%emt 0:02:07]} Nc6 {[%emt 0:00:09]} 9. Nxc6 {[%emt 0:06:53]} Bxc6 {[%emt 0:00:09]} 10. Qe2 {[%emt 0:01:13]} Be7 {[%emt 0:02:55]} 11. Bf4 {[%emt 0:04:52]} Nf6 {[%emt 0:01:08]} 12. Rad1 {[%emt 0:01:30]} Nxe4 {[%emt 0:01:28]} 13. Bxe4 {[%emt 0:00:05]} Qb6 {[%emt 0:00:03]} 14. Bxc6+ {[%emt 0:01:50]} Qxc6 {[%emt 0:36:22]} 15. Rd3 {[%emt 0:02:36]} O-O {[%emt 0:00:00]} 16. Be5 {[%emt 0:05:51]} g6 {[%emt 0:00:00]} 17. Bc3 {[%emt 0:00:44]} Rad8 {[%emt 0:00:00]} 18. Rh3 {[%emt 0:00:37]} Qd5 {[%emt 0:00:00]} 19. b3 {[%emt 0:04:23]} Rd7 {[%emt 0:00:00]} 20. Ba1 {[%emt 0:01:06]} Qf5 {[%emt 0:00:00]} 21. Rf3 {[%emt 0:01:05]} Qc5 {[%emt 0:00:00]} 22. Rd1 {[%emt 0:00:58]} Rxd1+ {[%emt 0:00:00]} 23. Qxd1 {[%emt 0:00:02]} Rd8 {[%emt 0:00:00]} 24. Rd3 {[%emt 0:00:54]} Rxd3 {[%emt 0:00:00]} 25. cxd3 {[%emt 0:00:02]} f6 {[%emt 0:00:00]} 26. Bb2 {[%emt 0:00:10]} e5 {[%emt 0:00:00]} 27. h4 {[%emt 0:01:01]} Kf7 {[%emt 0:00:00]} 28. Qe2 {[%emt 0:00:14]} Bd6 {[%emt 0:00:00]} 29. g3 {[%emt 0:00:20]} Bc7 {[%emt 0:00:00]} 30. Qe4 {[%emt 0:00:23]} b5 {[%emt 0:00:00]} 31. d4 {[%emt 0:00:15]} exd4 {[%emt 0:00:00]} 32. Bxd4 {[%emt 0:00:04]} Qd6 {[%emt 0:00:00]} 33. Qe3 {[%emt 0:00:31]} Kg7 {[%emt 0:00:00]} 34. Bc5 {[%emt 0:00:22]} Qd1+ {[%emt 0:00:00]} 35. Kg2 {[%emt 0:00:05]} Qd5+ {[%emt 0:00:00]} 36. Kh2 {[%emt 0:00:04]} Bd6 {[%emt 0:00:00]} 37. Bxd6 {[%emt 0:00:20]} Qxd6 {[%emt 0:00:00]} 38. Qa7+ {[%emt 0:00:20]} Kh6 {[%emt 0:00:00]} 39. Qf7 {[%emt 0:01:11]} Qb6 {[%emt 0:00:00]} 40. Kh3 {[%emt 0:00:19]} f5 {[%emt 0:00:00]} 41. Qf8+ {[%emt 0:00:24]} Kh5 {[%emt 0:00:00]} 42. Qf7 {[%emt 0:00:39]} h6 {[%emt 0:00:00]} 43. f3 {[%emt 0:03:17]} Qg1 {[%emt 0:00:13]} 44. g4+ {[%emt 0:00:00]} fxg4+ {[%emt 0:00:02]} 45. fxg4+ {[%emt 0:00:00]} Qxg4+ {[%emt 0:00:02]} 46. Kh2 {[%emt 0:00:00]} Qxh4+ {[%emt 0:00:04]} 47. Kg2 {[%emt 0:00:00]} Qg5+ {[%emt 0:00:01]} 48. Kh2 {[%emt 0:00:00]} Qh4+ {[%emt 0:00:15]} 49. Kg2 {[%emt 0:00:00]} Qe4+ {[%emt 0:00:08]} 50. Kg3 {[%emt 0:00:00]} Qe5+ {[%emt 0:00:17]} 51. Kg2 {[%emt 0:00:00]} Qe4+ {[%emt 0:00:12]} 52. Kg3 {[%emt 0:00:00]} Qe1+ {[%emt 0:00:05]} 53. Kg2 {[%emt 0:00:00]} Qe2+ {[%emt 0:00:22]} 54. Kg3 {[%emt 0:00:00]} Qg4+ {[%emt 0:00:05]} 55. Kh2 {[%emt 0:00:00]} Qf5 {[%emt 0:00:29]} 56. Qe8 {[%emt 0:00:00]} Qf4+ {[%emt 0:00:24]} 57. Kh3 {[%emt 0:00:00]} Qf5+ {[%emt 0:00:03]} 58. Kg3 {[%emt 0:00:13]} Qd3+ {[%emt 0:00:14]} 59. Kg2 {[%emt 0:00:11]} Qd5+ {[%emt 0:00:13]} 60. Kg3 {[%emt 0:00:06]} Qd6+ {[%emt 0:00:07]} 61. Kh3 {[%emt 0:00:11]} Qd3+ {[%emt 0:00:20]} 62. Kg2 {[%emt 0:00:08]} Qc2+ {[%emt 0:00:12]} 63. Kg3 {[%emt 0:00:04]} Qf5 {[%emt 0:00:16]} 64. Qc6 {[%emt 0:00:21]} Qg5+ {[%emt 0:00:13]} 65. Kh3 {[%emt 0:00:10]} Qg4+ {[%emt 0:00:07]} 66. Kh2 {[%emt 0:00:02]} Kh4 {[%emt 0:00:07]} 67. Qxa6 {[%emt 0:00:26]} Qg3+ {[%emt 0:00:10]} 68. Kh1 {[%emt 0:00:01]} h5 {[%emt 0:00:33]} 69. Qxb5 {[%emt 0:00:25]} Qf3+ {[%emt 0:00:23]} 70. Kg1 {[%emt 0:00:07]} g5 {[%emt 0:00:18]} 71. a4 {[%emt 0:00:35]} g4 {[%emt 0:00:07]} 72. Qe5 {[%emt 0:00:14]} Qd1+ {[%emt 0:00:10]} 73. Kg2 {[%emt 0:00:10]} Qf3+ {[%emt 0:00:15]} 74. Kg1 {[%emt 0:00:03]} Qd1+ {[%emt 0:00:01]} 75. Kg2 {[%emt 0:00:01]} Qf3+ {[%emt 0:03:42] Qe2} 1/2-1/2

[Event "Lidkoping Open 2019"]
[Site "Lidkoping"]
[Date "2019.08.25"]
[Round "6.12"]
[White "Magnussen, Pal"]
[Black "Bergre, Joachim"]
[Result "1/2-1/2"]
[ECO "B06"]
[WhiteElo "1983"]
[BlackElo "1928"]
[Annotator "NA"]
[PlyCount "42"]
[EventDate "2019.08.19"]
[EventType "swiss"]
[EventCountry "SWE"]
[SourceTitle "playchess.com"]
[Source "ChessBase"]
[SourceQuality "1"]
[TimeControl "2700+10"]

1. e4 {[%emt 0:01:06]} d6 {[%emt 0:00:50]} 2. d4 {[%emt 0:01:57]} g6 {[%emt 0:00:06]} 3. Nc3 {[%emt 0:00:27]} Bg7 {[%emt 0:00:05]} 4. Nf3 {[%emt 0:00:06]} a6 {[%emt 0:00:19]} 5. Be3 {[%emt 0:03:16]} b5 {[%emt 0:00:40]} 6. a3 {[%emt 0:01:59]} Nd7 {[%emt 0:00:51]} 7. Be2 {[%emt 0:01:28]} Bb7 {[%emt 0:00:15]} 8. h3 {[%emt 0:00:58]} Ngf6 {[%emt 0:03:31]} 9. e5 {[%emt 0:01:43]} Nd5 {[%emt 0:03:23]} 10. Nxd5 {[%emt 0:00:58]} Bxd5 {[%emt 0:00:06]} 11. exd6 {[%emt 0:00:14]} cxd6 {[%emt 0:00:37]} 12. O-O {[%emt 0:00:12]} O-O {[%emt 0:00:54]} 13. Qd2 {[%emt 0:01:55]} Nb6 {[%emt 0:05:35]} 14. Rfe1 {[%emt 0:02:22]} Qd7 {[%emt 0:07:27]} 15. Bg5 {[%emt 0:05:31]} Rfe8 {[%emt 0:00:50]} 16. Nh2 {[%emt 0:02:09]} Nc4 {[%emt 0:03:31]} 17. Bxc4 {[%emt 0:01:32]} Bxc4 {[%emt 0:00:32]} 18. Ng4 {[%emt 0:02:31]} Bd5 {[%emt 0:03:33]} 19. Re2 {[%emt 0:04:10]} Bc4 {[%emt 0:02:26]} 20. Ree1 {[%emt 0:00:29]} Bd5 {[%emt 0:00:09]} 21. Re2 {[%emt 0:00:12]} Bc4 {[%emt 0:00:13]} 1/2-1/2

[Event "Lidkoping Open 2019"]
[Site "Lidkoping"]
[Date "2019.08.25"]
[Round "6.13"]
[White "Blomstrom, Lars"]
[Black "Staunsbjerg, Valdemar A"]
[Result "1-0"]
[ECO "B26"]
[WhiteElo "2132"]
[BlackElo "1832"]
[Annotator "ChessBase"]
[PlyCount "132"]
[EventDate "2019.08.19"]
[EventType "swiss"]
[EventCountry "SWE"]
[SourceTitle "playchess.com"]
[Source "ChessBase"]
[SourceQuality "1"]
[TimeControl "2700+10"]

1. e4 {[%emt 0:00:21]} c5 {[%emt 0:00:00]} 2. Nc3 {[%emt 0:00:09]} Nc6 {[%emt 0:00:00]} 3. g3 {[%emt 0:00:02]} g6 {[%emt 0:00:14]} 4. Bg2 {[%emt 0:00:06]} Bg7 {[%emt 0:00:02]} 5. d3 {[%emt 0:00:10]} Nf6 {[%emt 0:02:05]} 6. h3 {[%emt 0:01:09]} d6 {[%emt 0:01:34]} 7. Be3 {[%emt 0:00:05]} Rb8 {[%emt 0:00:22]} 8. Qd2 {[%emt 0:00:10]} b5 {[%emt 0:01:53]} 9. f4 {[%emt 0:00:37]} b4 {[%emt 0:00:54]} 10. Nd1 {[%emt 0:00:07]} e5 {[%emt 0:06:44]} 11. Nf3 {[%emt 0:04:02]} Nh5 {[%emt 0:03:43]} 12. Qf2 {[%emt 0:06:10]} exf4 {[%emt 0:04:59]} 13. gxf4 {[%emt 0:00:11]} O-O {[%emt 0:02:18]} 14. O-O {[%emt 0:00:57]} Re8 {[%emt 0:04:04]} 15. Nd2 {[%emt 0:06:14]} Nd4 {[%emt 0:01:30]} 16. Nc4 {[%emt 0:01:54]} Be6 {[%emt 0:04:50]} 17. c3 {[%emt 0:00:29]} bxc3 {[%emt 0:01:54]} 18. Nxc3 {[%emt 0:01:57]} Nb5 {[%emt 0:00:38]} 19. Nxb5 {[%emt 0:01:19]} Rxb5 {[%emt 0:00:01]} 20. Rab1 {[%emt 0:00:12]} Qd7 {[%emt 0:01:11]} 21. Kh2 {[%emt 0:01:19]} Nf6 {[%emt 0:01:08]} 22. b3 {[%emt 0:00:27]} Rbb8 {[%emt 0:01:51]} 23. Rbd1 {[%emt 0:02:27]} Bxc4 {[%emt 0:01:34]} 24. bxc4 {[%emt 0:00:54]} Qc7 {[%emt 0:01:02]} 25. Rb1 {[%emt 0:01:01]} Nd7 {[%emt 0:00:25]} 26. Qc2 {[%emt 0:00:52]} Rxb1 {[%emt 0:00:19]} 27. Rxb1 {[%emt 0:00:03]} Rb8 {[%emt 0:00:04]} 28. Kg1 {[%emt 0:01:02]} Rxb1+ {[%emt 0:00:02]} 29. Qxb1 {[%emt 0:00:01]} Qa5 {[%emt 0:00:26]} 30. Kf2 {[%emt 0:00:39]} Nb6 {[%emt 0:00:17]} 31. Qb3 {[%emt 0:02:23]} Qc3 {[%emt 0:00:25]} 32. Bf3 {[%emt 0:02:00]} Bd4 {[%emt 0:00:26]} 33. Qxc3 {[%emt 0:00:12]} Bxc3 {[%emt 0:00:01]} 34. Bd1 {[%emt 0:00:01]} Kf8 {[%emt 0:00:09]} 35. e5 {[%emt 0:00:15]} Ke7 {[%emt 0:00:13]} 36. Kf3 {[%emt 0:00:21]} a5 {[%emt 0:00:51]} 37. exd6+ {[%emt 0:04:18]} Kxd6 {[%emt 0:00:04]} 38. f5 {[%emt 0:00:05]} Nd7 {[%emt 0:00:25]} 39. fxg6 {[%emt 0:00:48]} fxg6 {[%emt 0:00:06]} 40. Bf4+ {[%emt 0:01:27]} Be5 {[%emt 0:00:13]} 41. Bg5 {[%emt 0:00:19]} Bc3 {[%emt 0:00:13]} 42. Ba4 {[%emt 0:00:35]} Ne5+ {[%emt 0:00:10]} 43. Ke4 {[%emt 0:00:02]} Ke6 {[%emt 0:00:54]} 44. Be8 {[%emt 0:00:09]} Bd4 {[%emt 0:00:37]} 45. Bd2 {[%emt 0:00:19]} Ke7 {[%emt 0:00:40]} 46. Bb5 {[%emt 0:00:06]} h5 {[%emt 0:00:10]} 47. Bxa5 {[%emt 0:00:50]} g5 {[%emt 0:00:12]} 48. Be1 {[%emt 0:00:20]} g4 {[%emt 0:00:10]} 49. hxg4 {[%emt 0:00:08]} hxg4 {[%emt 0:00:21]} 50. a4 {[%emt 0:00:25]} Nf3 {[%emt 0:00:18]} 51. Bg3 {[%emt 0:00:15]} Ke6 {[%emt 0:00:26]} 52. a5 {[%emt 0:00:18]} Nd2+ {[%emt 0:00:06]} 53. Kf4 {[%emt 0:00:15]} Be5+ {[%emt 0:00:20]} 54. Kxg4 {[%emt 0:00:03]} Bxg3 {[%emt 0:00:01]} 55. Kxg3 {[%emt 0:03:10]} Kd6 56. Kf4 {[%emt 0:00:00]} Nb3 {[%emt 0:00:10]} 57. a6 {[%emt 0:00:00]} Kc7 {[%emt 0:00:03]} 58. Ke4 {[%emt 0:00:00]} Nc1 {[%emt 0:00:01]} 59. d4 {[%emt 0:00:00]} cxd4 {[%emt 0:00:02]} 60. Kxd4 {[%emt 0:00:00]} Ne2+ {[%emt 0:00:14]} 61. Kd3 {[%emt 0:00:00]} Nf4+ {[%emt 0:00:01]} 62. Kc3 {[%emt 0:00:00]} Ne6 {[%emt 0:00:05]} 63. Kb3 {[%emt 0:00:00]} Kb6 {[%emt 0:00:01]} 64. Kb4 {[%emt 0:00:00]} Nc5 {[%emt 0:00:01]} 65. a7 {[%emt 0:00:00]} Nd3+ {[%emt 0:00:04]} 66. Kb3 {[%emt 0:01:50]} Nc5+ {[%emt 0:01:43]} 1-0

[Event "Lidkoping Open 2019"]
[Site "Lidkoping"]
[Date "2019.08.25"]
[Round "6.14"]
[White "Muntean, Victor"]
[Black "Kleimark, Anders"]
[Result "0-1"]
[ECO "C92"]
[WhiteElo "2002"]
[BlackElo "2016"]
[Annotator "NA"]
[PlyCount "84"]
[EventDate "2019.08.19"]
[EventType "swiss"]
[EventCountry "SWE"]
[SourceTitle "playchess.com"]
[Source "ChessBase"]
[SourceQuality "1"]
[TimeControl "2700+10"]

1. e4 {[%emt 0:00:00]} e5 {[%emt 0:00:01]} 2. Nf3 {[%emt 0:00:00]} Nc6 {[%emt 0:00:10]} 3. Bc4 {[%emt 0:00:07]} Nf6 {[%emt 0:00:06]} 4. d3 {[%emt 0:00:26]} Be7 {[%emt 0:00:07]} 5. O-O {[%emt 0:00:06]} O-O {[%emt 0:00:06]} 6. Re1 {[%emt 0:00:04]} d6 {[%emt 0:00:15]} 7. c3 {[%emt 0:01:16]} Na5 {[%emt 0:02:29]} 8. Bb5 {[%emt 0:00:09]} a6 {[%emt 0:00:45]} 9. Ba4 {[%emt 0:00:06]} c5 {[%emt 0:00:14]} 10. h3 {[%emt 0:00:36]} b5 {[%emt 0:03:00]} 11. Bc2 {[%emt 0:00:06]} Bb7 {[%emt 0:01:26]} 12. Nbd2 {[%emt 0:00:44]} Qc7 {[%emt 0:02:29]} 13. Nf1 {[%emt 0:00:33]} c4 {[%emt 0:01:34]} 14. d4 {[%emt 0:01:14]} Nc6 {[%emt 0:03:15]} 15. Ng3 {[%emt 0:01:27]} g6 {[%emt 0:00:43]} 16. d5 {[%emt 0:01:48]} Nb8 {[%emt 0:00:45]} 17. Nh4 {[%emt 0:05:14]} Nxd5 {[%emt 0:02:02]} 18. Nhf5 {[%emt 0:09:27]} Nf4 {[%emt 0:04:11]} 19. Qg4 {[%emt 0:06:30]} h5 {[%emt 0:02:55]} 20. Qf3 {[%emt 0:03:03]} h4 {[%emt 0:03:02]} 21. Nxe7+ {[%emt 0:02:08]} Qxe7 {[%emt 0:00:03]} 22. Bxf4 {[%emt 0:00:02]} exf4 {[%emt 0:00:17]} 23. Ne2 {[%emt 0:00:07]} g5 {[%emt 0:01:48]} 24. Nd4 {[%emt 0:00:10]} Qf6 {[%emt 0:00:49]} 25. Qh5 {[%emt 0:02:55]} Qg6 {[%emt 0:06:28]} 26. Qxg6+ {[%emt 0:00:13]} fxg6 {[%emt 0:00:01]} 27. e5 {[%emt 0:00:02]} dxe5 {[%emt 0:01:20]} 28. Rxe5 {[%emt 0:00:01]} Rf6 {[%emt 0:02:58]} 29. Rxg5 {[%emt 0:01:02]} Kg7 {[%emt 0:00:12]} 30. Re1 {[%emt 0:00:17]} Kh6 {[%emt 0:00:48]} 31. Rg4 {[%emt 0:02:01]} g5 {[%emt 0:01:04]} 32. Re5 {[%emt 0:00:05]} Bc8 {[%emt 0:01:19]} 33. Re7 {[%emt 0:02:00]} Rg6 {[%emt 0:01:18]} 34. Bxg6 {[%emt 0:00:24]} Kxg6 {[%emt 0:00:05]} 35. Re8 {[%emt 0:00:25]} Bxg4 {[%emt 0:00:21]} 36. hxg4 {[%emt 0:00:02]} Kf7 {[%emt 0:00:18]} 37. Rc8 {[%emt 0:00:08]} Ke7 {[%emt 0:00:23]} 38. Rxb8 {[%emt 0:00:30]} Rxb8 {[%emt 0:00:19]} 39. Nc6+ {[%emt 0:00:02]} Kd6 {[%emt 0:00:15]} 40. Nxb8 {[%emt 0:00:02]} a5 {[%emt 0:00:03]} 41. b4 {[%emt 0:01:42]} axb4 {[%emt 0:00:14]} 42. Na6 {[%emt 0:01:16]} b3 {[%emt 0:00:28]} 0-1

[Event "Lidkoping Open 2019"]
[Site "Lidkoping"]
[Date "2019.08.25"]
[Round "6.15"]
[White "Bengtsson, Siv"]
[Black "Olofsson, Hans-Erik"]
[Result "1/2-1/2"]
[ECO "B07"]
[WhiteElo "2074"]
[BlackElo "1898"]
[Annotator "NA"]
[PlyCount "106"]
[EventDate "2019.08.19"]
[EventType "swiss"]
[EventCountry "SWE"]
[SourceTitle "playchess.com"]
[Source "ChessBase"]
[SourceQuality "1"]
[TimeControl "2700+10"]

1. e4 {[%emt 0:00:00]} d6 {[%emt 0:00:00]} 2. d4 {[%emt 0:00:03]} Nf6 {[%emt 0:00:00]} 3. Nc3 {[%emt 0:00:06]} c6 {[%emt 0:00:04]} 4. Bg5 {[%emt 0:01:54]} Nbd7 {[%emt 0:01:27]} 5. Nge2 {[%emt 0:03:52]} e5 {[%emt 0:01:09]} 6. Qd2 {[%emt 0:02:03]} b5 {[%emt 0:01:39]} 7. Ng3 {[%emt 0:02:23]} exd4 {[%emt 0:06:42]} 8. Qxd4 {[%emt 0:00:11]} Qb6 {[%emt 0:00:13]} 9. Qxb6 {[%emt 0:03:44]} axb6 {[%emt 0:00:24]} 10. f3 {[%emt 0:04:08]} h6 {[%emt 0:00:42]} 11. Be3 {[%emt 0:00:09]} Nc5 {[%emt 0:04:42]} 12. Nce2 {[%emt 0:02:49]} Bd7 {[%emt 0:04:59]} 13. Nd4 {[%emt 0:00:56]} g6 {[%emt 0:00:44]} 14. Kf2 {[%emt 0:01:25]} Kd8 {[%emt 0:03:41]} 15. Be2 {[%emt 0:01:27]} Kc7 {[%emt 0:00:31]} 16. Rhd1 {[%emt 0:02:35]} Be7 {[%emt 0:01:10]} 17. a3 {[%emt 0:00:59]} h5 {[%emt 0:03:08]} 18. c4 {[%emt 0:03:34]} h4 {[%emt 0:02:18]} 19. Nf1 {[%emt 0:00:17]} bxc4 {[%emt 0:00:14]} 20. Bxc4 {[%emt 0:00:06]} Rh7 {[%emt 0:00:21]} 21. Rac1 {[%emt 0:00:39]} Kb7 {[%emt 0:01:29]} 22. Rc2 {[%emt 0:02:09]} b5 {[%emt 0:03:21]} 23. Be2 {[%emt 0:00:12]} Ne6 {[%emt 0:02:24]} 24. Rcd2 {[%emt 0:01:20]} Ne8 {[%emt 0:02:44]} 25. h3 {[%emt 0:03:59]} N8c7 {[%emt 0:00:05]} 26. f4 {[%emt 0:00:26]} Nc5 {[%emt 0:01:51]} 27. Bf3 {[%emt 0:00:17]} N7e6 {[%emt 0:01:29]} 28. b4 {[%emt 0:03:41]} Nxd4 {[%emt 0:00:16]} 29. bxc5 {[%emt 0:00:48]} dxc5 {[%emt 0:00:49]} 30. Bxd4 {[%emt 0:00:04]} cxd4 {[%emt 0:00:01]} 31. Rd3 {[%emt 0:00:18]} Bc5 {[%emt 0:00:31]} 32. Rc1 {[%emt 0:01:25]} Bb6 {[%emt 0:00:14]} 33. Nd2 {[%emt 0:00:12]} Ra4 {[%emt 0:00:26]} 34. Ke2 {[%emt 0:00:14]} f5 {[%emt 0:00:24]} 35. e5 {[%emt 0:00:18]} Kc7 {[%emt 0:00:21]} 36. Rb3 {[%emt 0:01:15]} c5 {[%emt 0:00:09]} 37. Bd5 {[%emt 0:00:16]} c4 {[%emt 0:00:08]} 38. e6 {[%emt 0:00:11]} Re7 {[%emt 0:00:05]} 39. Kf1 {[%emt 0:00:27]} Bc6 {[%emt 0:00:14]} 40. Bxc6 {[%emt 0:00:08]} Kxc6 {[%emt 0:00:01]} 41. Nf3 {[%emt 0:00:01]} Rxe6 {[%emt 0:00:02]} 42. Ne5+ {[%emt 0:00:01]} Kb7 {[%emt 0:00:06]} 43. Rxb5 {[%emt 0:00:02]} Rxa3 {[%emt 0:00:05]} 44. Rxc4 {[%emt 0:00:20]} d3 {[%emt 0:00:10]} 45. Ke1 {[%emt 0:00:20]} Rd6 {[%emt 0:00:04]} 46. Rcb4 {[%emt 0:00:18]} Ra1+ {[%emt 0:00:02]} 47. Rb1 {[%emt 0:00:00]} d2+ {[%emt 0:00:02]} 48. Kd1 {[%emt 0:00:02]} Rxb1+ {[%emt 0:00:04]} 49. Rxb1 {[%emt 0:00:02]} Kc7 {[%emt 0:00:04]} 50. Nc4 {[%emt 0:00:08]} Rc6 {[%emt 0:00:22]} 51. Nxb6 {[%emt 0:00:04]} Rxb6 {[%emt 0:00:01]} 52. Rxb6 {[%emt 0:00:03]} Kxb6 {[%emt 0:00:01]} 53. Kxd2 {[%emt 0:00:01]} Kc5 {[%emt 0:00:01]} 1/2-1/2